[Event "*** Titled Tuesday Blitz"]
[Site "Chess.com"]
[Date "2021.04.06"]
[Round "3"]
[White "federicosellitti"]
[Black "anon6121824"]
[Result "1-0"]
[WhiteElo "2580"]
[BlackElo "2776"]
[TimeControl "180+1"]
[EndTime "10:30:14 PDT"]
[Termination "federicosellitti won by resignation"]

1. e4 {[%clk 0:03:00.9]} 1... c6 {[%clk 0:02:59.6]} 2. d4 {[%clk 0:03:00.7]}
2... d5 {[%clk 0:02:59.7]} 3. exd5 {[%clk 0:03:01.6]} 3... cxd5 {[%clk
0:03:00.6]} 4. Bd3 {[%clk 0:03:02.2]} 4... Nc6 {[%clk 0:02:59.1]} 5. c3 {[%clk
0:03:02.7]} 5... Nf6 {[%clk 0:02:56.9]} 6. Bf4 {[%clk 0:03:03.1]} 6... g6 {[%clk
0:02:49.9]} 7. Nf3 {[%clk 0:03:02.1]} 7... Bg7 {[%clk 0:02:50.1]} 8. Nbd2 {[%clk
0:03:01.2]} 8... O-O {[%clk 0:02:50.6]} 9. O-O {[%clk 0:03:01.2]} 9... Bf5
{[%clk 0:02:50.1]} 10. Bxf5 {[%clk 0:03:01.1]} 10... gxf5 {[%clk 0:02:49.5]} 11.
Ne5 {[%clk 0:03:02]} 11... e6 {[%clk 0:02:48.9]} 12. Qe2 {[%clk 0:02:53.2]}
12... Nd7 {[%clk 0:02:44.3]} 13. Nxc6 {[%clk 0:02:42.3]} 13... bxc6 {[%clk
0:02:44]} 14. b4 {[%clk 0:02:42.9]} 14... Kh8 {[%clk 0:02:37.7]} 15. Nf3 {[%clk
0:02:26.6]} 15... a5 {[%clk 0:02:37.7]} 16. a3 {[%clk 0:02:25.9]} 16... Qb6
{[%clk 0:02:33]} 17. Bd6 {[%clk 0:02:12.1]} 17... Rfe8 {[%clk 0:02:08]} 18. Ng5
{[%clk 0:02:11.9]} 18... f6 {[%clk 0:02:08.3]} 19. Bc5 {[%clk 0:01:24.6]} 19...
Nxc5 {[%clk 0:01:58]} 20. bxc5 {[%clk 0:01:25.5]} 20... Qc7 {[%clk 0:01:43.3]}
21. Nf3 {[%clk 0:01:24.2]} 21... e5 {[%clk 0:01:41]} 22. Qc2 {[%clk 0:01:21.9]}
22... e4 {[%clk 0:01:39]} 23. Nh4 {[%clk 0:01:12.2]} 23... f4 {[%clk 0:01:39.2]}
24. Rfb1 {[%clk 0:00:56.8]} 24... Qd7 {[%clk 0:01:21.1]} 25. Qd1 {[%clk
0:00:49.8]} 25... Bh6 {[%clk 0:01:09.4]} 26. Qh5 {[%clk 0:00:42.8]} 26... Bg5
{[%clk 0:01:09.4]} 27. Rb6 {[%clk 0:00:43]} 27... Rab8 {[%clk 0:00:47.7]} 28.
Rab1 {[%clk 0:00:42.3]} 28... Rxb6 {[%clk 0:00:45.9]} 29. cxb6 {[%clk
0:00:32.6]} 29... Rb8 {[%clk 0:00:39.6]} 30. Ng6+ {[%clk 0:00:27.9]} 30... Kg7
{[%clk 0:00:37.1]} 31. Ne5 {[%clk 0:00:28.5]} 31... Qe6 {[%clk 0:00:34.6]} 32.
b7 {[%clk 0:00:24.2]} 32... c5 {[%clk 0:00:27]} 33. Ng4 {[%clk 0:00:08.3]} 33...
cxd4 {[%clk 0:00:24.6]} 34. cxd4 {[%clk 0:00:09.2]} 34... f3 {[%clk 0:00:15.8]}
35. h4 {[%clk 0:00:07.2]} 35... Bd2 {[%clk 0:00:16]} 36. Ne3 {[%clk 0:00:02.5]}
36... Bxe3 {[%clk 0:00:13.5]} 37. fxe3 {[%clk 0:00:03.4]} 37... Qd7 {[%clk
0:00:14.4]} 38. gxf3 {[%clk 0:00:03.2]} 38... Rxb7 {[%clk 0:00:11.9]} 39. Rxb7
{[%clk 0:00:03.4]} 39... Qxb7 {[%clk 0:00:12.8]} 40. Qg4+ {[%clk 0:00:03.5]}
40... Kf7 {[%clk 0:00:11.8]} 41. fxe4 {[%clk 0:00:04.4]} 41... dxe4 {[%clk
0:00:10.6]} 42. Kh2 {[%clk 0:00:03.7]} 42... Qb2+ {[%clk 0:00:08.1]} 43. Kg3
{[%clk 0:00:03.5]} 43... Qxa3 {[%clk 0:00:07.6]} 44. Qxe4 {[%clk 0:00:04.2]}
44... Qd6+ {[%clk 0:00:06.3]} 45. Kf3 {[%clk 0:00:03.6]} 45... Kg7 {[%clk
0:00:03.7]} 46. Qb7+ {[%clk 0:00:03.8]} 46... Kg6 {[%clk 0:00:03.4]} 47. Qa7
{[%clk 0:00:03.9]} 47... Qd5+ {[%clk 0:00:03.3]} 48. Kg3 {[%clk 0:00:04.2]}
48... Qd6+ {[%clk 0:00:03.5]} 49. Kf3 {[%clk 0:00:04.4]} 49... Qd5+ {[%clk
0:00:03.9]} 50. Kg3 {[%clk 0:00:04.9]} 50... Qf5 {[%clk 0:00:04.2]} 51. Qa6
{[%clk 0:00:02.7]} 51... Kh5 {[%clk 0:00:04.3]} 52. d5 {[%clk 0:00:01.6]} 52...
Qg4+ {[%clk 0:00:04.4]} 53. Kf2 {[%clk 0:00:01.9]} 53... Qxh4+ {[%clk
0:00:04.9]} 54. Ke2 {[%clk 0:00:02.8]} 54... Qh2+ {[%clk 0:00:05.2]} 55. Kd3
{[%clk 0:00:03.4]} 55... Qe5 {[%clk 0:00:05.2]} 56. e4 {[%clk 0:00:03.4]} 56...
Qa1 {[%clk 0:00:04.6]} 57. d6 {[%clk 0:00:03]} 57... Qa2 {[%clk 0:00:05]} 58.
Kd4 {[%clk 0:00:03.1]} 58... Qa3 {[%clk 0:00:04.9]} 59. Qb5+ {[%clk 0:00:02.8]}
59... Kg4 {[%clk 0:00:04.1]} 60. d7 {[%clk 0:00:03.7]} 60... Qd6+ {[%clk
0:00:03.2]} 61. Qd5 {[%clk 0:00:03.8]} 61... Qb4+ {[%clk 0:00:03.7]} 62. Kd3
{[%clk 0:00:04.5]} 62... Qb1+ {[%clk 0:00:03.7]} 63. Kd4 {[%clk 0:00:04.8]}
63... Qb2+ {[%clk 0:00:04]} 64. Kc5 {[%clk 0:00:04.9]} 64... Qb4+ {[%clk
0:00:04.5]} 65. Kc6 {[%clk 0:00:05.2]} 65... Qc3+ {[%clk 0:00:05.2]} 66. Kd6
{[%clk 0:00:05.7]} 66... Qb4+ {[%clk 0:00:04.9]} 67. Ke6 {[%clk 0:00:05.9]}
67... Qb6+ {[%clk 0:00:05.1]} 68. Qd6 {[%clk 0:00:05.8]} 68... Qb3+ {[%clk
0:00:05.5]} 69. Ke7 {[%clk 0:00:06.2]} 69... a4 {[%clk 0:00:03.1]} 70. Qe6+
{[%clk 0:00:05.8]} 70... Qxe6+ {[%clk 0:00:02.1]} 71. Kxe6 {[%clk 0:00:06.7]}
1-0

[Event "*** Titled Tuesday Blitz"]
[Site "Chess.com"]
[Date "2021.04.06"]
[Round "3"]
[White "vinniethepooh"]
[Black "Zq1"]
[Result "1/2-1/2"]
[WhiteElo "2731"]
[BlackElo "2530"]
[TimeControl "180+1"]
[EndTime "10:30:17 PDT"]
[Termination "Game drawn by stalemate"]

1. d4 {[%clk 0:03:00.9]} 1... d5 {[%clk 0:02:58.7]} 2. c4 {[%clk 0:03:01.3]}
2... e6 {[%clk 0:02:58.8]} 3. Nc3 {[%clk 0:03:01.7]} 3... Be7 {[%clk 0:02:59]}
4. cxd5 {[%clk 0:03:00]} 4... exd5 {[%clk 0:02:58.5]} 5. Bf4 {[%clk 0:03:00.6]}
5... Nf6 {[%clk 0:02:58.2]} 6. e3 {[%clk 0:03:00.9]} 6... O-O {[%clk 0:02:57.6]}
7. Bd3 {[%clk 0:03:00.4]} 7... c5 {[%clk 0:02:57.4]} 8. Nge2 {[%clk 0:02:59.4]}
8... Nc6 {[%clk 0:02:56.7]} 9. dxc5 {[%clk 0:02:54.8]} 9... Bxc5 {[%clk
0:02:56]} 10. O-O {[%clk 0:02:54.8]} 10... d4 {[%clk 0:02:56.1]} 11. Na4 {[%clk
0:02:52]} 11... Bd6 {[%clk 0:02:55.6]} 12. Bxd6 {[%clk 0:02:45.8]} 12... Qxd6
{[%clk 0:02:54.9]} 13. exd4 {[%clk 0:02:37]} 13... Rd8 {[%clk 0:02:49.7]} 14.
Qb3 {[%clk 0:01:37.3]} 14... Nxd4 {[%clk 0:02:30.1]} 15. Nxd4 {[%clk 0:01:35.7]}
15... Qxd4 {[%clk 0:02:29.2]} 16. Rad1 {[%clk 0:01:36.1]} 16... Be6 {[%clk
0:02:23.5]} 17. Bxh7+ {[%clk 0:01:19.7]} 17... Kxh7 {[%clk 0:02:09.4]} 18. Rxd4
{[%clk 0:01:20.6]} 18... Bxb3 {[%clk 0:02:08.1]} 19. Rh4+ {[%clk 0:01:11.4]}
19... Kg6 {[%clk 0:02:06.3]} 20. axb3 {[%clk 0:01:11.9]} 20... b6 {[%clk
0:01:51.3]} 21. g3 {[%clk 0:01:07.9]} 21... Rd3 {[%clk 0:01:50.6]} 22. Rb4
{[%clk 0:00:56.4]} 22... Re8 {[%clk 0:01:43.2]} 23. Nc3 {[%clk 0:00:52.7]} 23...
Rd2 {[%clk 0:01:39.8]} 24. Ra1 {[%clk 0:00:53]} 24... Re7 {[%clk 0:01:33]} 25.
Ra2 {[%clk 0:00:31.3]} 25... Kf5 {[%clk 0:01:31.1]} 26. Rf4+ {[%clk 0:00:25.1]}
26... Kg6 {[%clk 0:01:29.8]} 27. Rfa4 {[%clk 0:00:25]} 27... a5 {[%clk
0:01:24.2]} 28. Kg2 {[%clk 0:00:22.6]} 28... Kf5 {[%clk 0:01:17.7]} 29. Rf4+
{[%clk 0:00:22.2]} 29... Kg6 {[%clk 0:01:17.6]} 30. h3 {[%clk 0:00:22.7]} 30...
Red7 {[%clk 0:01:11.5]} 31. b4 {[%clk 0:00:21.9]} 31... Nd5 {[%clk 0:01:02.2]}
32. Rg4+ {[%clk 0:00:16.3]} 32... Kh7 {[%clk 0:01:00.9]} 33. Nxd5 {[%clk
0:00:09.9]} 33... R7xd5 {[%clk 0:01:00.9]} 34. bxa5 {[%clk 0:00:10.5]} 34...
bxa5 {[%clk 0:00:56]} 35. Rf4 {[%clk 0:00:05.9]} 35... f6 {[%clk 0:00:49.2]} 36.
g4 {[%clk 0:00:05.9]} 36... Rb5 {[%clk 0:00:48.7]} 37. Rfa4 {[%clk 0:00:06.1]}
37... Rdd5 {[%clk 0:00:42.8]} 38. Kg3 {[%clk 0:00:05.7]} 38... g5 {[%clk
0:00:42.8]} 39. f3 {[%clk 0:00:05.4]} 39... Kg6 {[%clk 0:00:41.9]} 40. h4 {[%clk
0:00:05.8]} 40... gxh4+ {[%clk 0:00:40.4]} 41. Kxh4 {[%clk 0:00:06.7]} 41... f5
{[%clk 0:00:40.8]} 42. Kg3 {[%clk 0:00:06.6]} 42... fxg4 {[%clk 0:00:39.3]} 43.
Rxg4+ {[%clk 0:00:07.5]} 43... Kf6 {[%clk 0:00:37.6]} 44. Rf4+ {[%clk
0:00:07.9]} 44... Kg6 {[%clk 0:00:37.2]} 45. Rg4+ {[%clk 0:00:08.4]} 45... Kf6
{[%clk 0:00:37.2]} 46. Re4 {[%clk 0:00:08.9]} 46... Rd2 {[%clk 0:00:34.2]} 47.
Rf4+ {[%clk 0:00:07.3]} 47... Kg6 {[%clk 0:00:32.8]} 48. Rfa4 {[%clk 0:00:07.7]}
48... Rdd5 {[%clk 0:00:28.5]} 49. b3 {[%clk 0:00:07.6]} 49... Rg5+ {[%clk
0:00:26.2]} 50. Rg4 {[%clk 0:00:07.8]} 50... Rxg4+ {[%clk 0:00:20.7]} 51. Kxg4
{[%clk 0:00:08.7]} 51... Rb4+ {[%clk 0:00:20.2]} 52. f4 {[%clk 0:00:08.5]} 52...
Rxb3 {[%clk 0:00:19.9]} 53. Rxa5 {[%clk 0:00:09]} 53... Rb6 {[%clk 0:00:20.2]}
54. Rg5+ {[%clk 0:00:07.3]} 54... Kf6 {[%clk 0:00:20.1]} 55. Rh5 {[%clk
0:00:08.2]} 55... Kg6 {[%clk 0:00:20.2]} 56. f5+ {[%clk 0:00:08.3]} 56... Kg7
{[%clk 0:00:19.8]} 57. Rh1 {[%clk 0:00:08.5]} 57... Rb2 {[%clk 0:00:18.6]} 58.
Ra1 {[%clk 0:00:06.7]} 58... Rg2+ {[%clk 0:00:17.9]} 59. Kf3 {[%clk 0:00:07.4]}
59... Rb2 {[%clk 0:00:17.6]} 60. Ra6 {[%clk 0:00:05.8]} 60... Kf7 {[%clk
0:00:14.4]} 61. Kf4 {[%clk 0:00:04.1]} 61... Rf2+ {[%clk 0:00:14]} 62. Kg5
{[%clk 0:00:04.7]} 62... Rg2+ {[%clk 0:00:13.9]} 63. Kf4 {[%clk 0:00:05.4]}
63... Rf2+ {[%clk 0:00:14.1]} 64. Ke4 {[%clk 0:00:06.1]} 64... Re2+ {[%clk
0:00:14.2]} 65. Kf3 {[%clk 0:00:06.8]} 65... Rb2 {[%clk 0:00:13.6]} 66. Rd6
{[%clk 0:00:07.3]} 66... Rb4 {[%clk 0:00:13.2]} 67. Re6 {[%clk 0:00:06.5]} 67...
Ra4 {[%clk 0:00:12.9]} 68. Rd6 {[%clk 0:00:05.1]} 68... Rb4 {[%clk 0:00:12.9]}
69. Ke3 {[%clk 0:00:05.7]} 69... Ra4 {[%clk 0:00:12.8]} 70. Rd4 {[%clk
0:00:05.9]} 70... Rxd4 {[%clk 0:00:11.8]} 71. Kxd4 {[%clk 0:00:06.8]} 71... Kf6
{[%clk 0:00:12.2]} 72. Ke4 {[%clk 0:00:07.7]} 72... Kf7 {[%clk 0:00:12.5]} 73.
Kf4 {[%clk 0:00:08.6]} 73... Kf6 {[%clk 0:00:12.5]} 74. Kg4 {[%clk 0:00:09.5]}
74... Kf7 {[%clk 0:00:12.8]} 75. Kg5 {[%clk 0:00:10.4]} 75... Kg7 {[%clk
0:00:13.1]} 76. Kh5 {[%clk 0:00:11.1]} 76... Kf6 {[%clk 0:00:13.2]} 77. Kg4
{[%clk 0:00:12]} 77... Kf7 {[%clk 0:00:13.5]} 78. Kg5 {[%clk 0:00:12.9]} 78...
Kg7 {[%clk 0:00:13.6]} 79. f6+ {[%clk 0:00:13.8]} 79... Kf7 {[%clk 0:00:13.8]}
80. Kf5 {[%clk 0:00:14.7]} 80... Kf8 {[%clk 0:00:14]} 81. Ke6 {[%clk 0:00:15.6]}
81... Ke8 {[%clk 0:00:13.8]} 82. Ke5 {[%clk 0:00:16]} 82... Kf7 {[%clk
0:00:13.7]} 83. Kf5 {[%clk 0:00:16.9]} 83... Kf8 {[%clk 0:00:13.8]} 84. Kg6
{[%clk 0:00:17.8]} 84... Kg8 {[%clk 0:00:14.1]} 85. f7+ {[%clk 0:00:18.5]} 85...
Kf8 {[%clk 0:00:13.8]} 86. Kf6 {[%clk 0:00:19.4]} 1/2-1/2

[Event "*** Titled Tuesday Blitz"]
[Site "Chess.com"]
[Date "2021.04.06"]
[Round "3"]
[White "Vincent_Vega95"]
[Black "Savagelittlemole"]
[Result "1-0"]
[WhiteElo "2711"]
[BlackElo "2496"]
[TimeControl "180+1"]
[EndTime "10:30:21 PDT"]
[Termination "Vincent_Vega95 won by resignation"]

1. Nf3 {[%clk 0:03:00.9]} 1... Nf6 {[%clk 0:02:59.9]} 2. g3 {[%clk 0:03:01.4]}
2... g6 {[%clk 0:03:00.6]} 3. Bg2 {[%clk 0:03:02.3]} 3... Bg7 {[%clk 0:03:01.3]}
4. O-O {[%clk 0:03:03]} 4... O-O {[%clk 0:03:01.9]} 5. d3 {[%clk 0:03:03.6]}
5... d5 {[%clk 0:03:02]} 6. Nbd2 {[%clk 0:03:03.3]} 6... c5 {[%clk 0:03:02.4]}
7. e4 {[%clk 0:03:03.8]} 7... Nc6 {[%clk 0:02:57.9]} 8. Re1 {[%clk 0:03:04.2]}
8... e5 {[%clk 0:02:56.1]} 9. a3 {[%clk 0:03:04.5]} 9... Re8 {[%clk 0:02:54.1]}
10. Rb1 {[%clk 0:03:04.1]} 10... a5 {[%clk 0:02:52.2]} 11. a4 {[%clk 0:03:02.1]}
11... Bg4 {[%clk 0:02:49]} 12. h3 {[%clk 0:02:57.5]} 12... Be6 {[%clk
0:02:44.2]} 13. Ng5 {[%clk 0:02:57.6]} 13... Bc8 {[%clk 0:02:41.7]} 14. exd5
{[%clk 0:02:57.9]} 14... Nxd5 {[%clk 0:02:39.3]} 15. Nc4 {[%clk 0:02:58.2]}
15... f6 {[%clk 0:02:28.8]} 16. Ne4 {[%clk 0:02:46.9]} 16... Bf8 {[%clk
0:02:13.8]} 17. Ned6 {[%clk 0:02:39.9]} 17... Bxd6 {[%clk 0:02:08.1]} 18. Bxd5+
{[%clk 0:02:40.4]} 18... Kh8 {[%clk 0:02:05.3]} 19. Bg2 {[%clk 0:02:38.7]} 19...
Bf8 {[%clk 0:01:59.5]} 20. f4 {[%clk 0:02:32.2]} 20... Be6 {[%clk 0:01:54.4]}
21. fxe5 {[%clk 0:02:32.2]} 21... Bxc4 {[%clk 0:01:54.6]} 22. dxc4 {[%clk
0:02:32.5]} 22... Nxe5 {[%clk 0:01:43.5]} 23. Bxb7 {[%clk 0:02:07.9]} 23... Rb8
{[%clk 0:01:35.5]} 24. Bd5 {[%clk 0:02:05.9]} 24... Qd7 {[%clk 0:01:22.5]} 25.
Kg2 {[%clk 0:02:01.9]} 25... Qxa4 {[%clk 0:01:14.6]} 26. b3 {[%clk 0:02:00.6]}
26... Qd7 {[%clk 0:01:11.8]} 27. Ra1 {[%clk 0:01:57.3]} 27... Nc6 {[%clk
0:00:32.9]} 28. Rxe8 {[%clk 0:01:53.1]} 28... Rxe8 {[%clk 0:00:32.3]} 29. Bb2
{[%clk 0:01:53]} 29... Nd4 {[%clk 0:00:32.2]} 30. Bxd4 {[%clk 0:01:45]} 30...
cxd4 {[%clk 0:00:33.1]} 31. Qxd4 {[%clk 0:01:38.9]} 31... Re2+ {[%clk
0:00:32.6]} 32. Kf3 {[%clk 0:01:36.3]} 32... Rxc2 {[%clk 0:00:19.4]} 33. Qxf6+
{[%clk 0:01:24.8]} 33... Bg7 {[%clk 0:00:19.3]} 34. Qf4 {[%clk 0:01:18.2]} 34...
Qe8 {[%clk 0:00:14.8]} 35. Be4 {[%clk 0:01:03.2]} 35... Rc3+ {[%clk 0:00:14]}
36. Kg2 {[%clk 0:01:03.5]} 36... Rxb3 {[%clk 0:00:12.1]} 37. Rxa5 {[%clk
0:00:50.7]} 37... Rb2+ {[%clk 0:00:12.3]} 38. Kh1 {[%clk 0:00:49.4]} 38... Rb8
{[%clk 0:00:10.5]} 39. Ra7 {[%clk 0:00:39.9]} 39... Qd8 {[%clk 0:00:09.5]} 40.
Bd5 {[%clk 0:00:36.5]} 40... Qb6 {[%clk 0:00:06.7]} 41. Qxb8+ {[%clk 0:00:12.7]}
41... Qxb8 {[%clk 0:00:06.5]} 42. Ra8 {[%clk 0:00:13.4]} 42... Qxa8 {[%clk
0:00:07.1]} 43. Bxa8 {[%clk 0:00:14.3]} 43... Bd4 {[%clk 0:00:06.9]} 44. Kg2
{[%clk 0:00:13.7]} 44... Kg7 {[%clk 0:00:07.4]} 45. Kf3 {[%clk 0:00:14.3]} 45...
Kf6 {[%clk 0:00:08]} 46. Ke4 {[%clk 0:00:15]} 46... Bf2 {[%clk 0:00:08.3]} 47.
g4 {[%clk 0:00:15.6]} 47... Ke6 {[%clk 0:00:08.4]} 48. Bd5+ {[%clk 0:00:15.9]}
48... Kd6 {[%clk 0:00:08.3]} 49. Bg8 {[%clk 0:00:16.2]} 49... h6 {[%clk
0:00:08.7]} 50. Bh7 {[%clk 0:00:16.6]} 50... g5 {[%clk 0:00:08.6]} 51. Kf5
{[%clk 0:00:16.4]} 51... Be3 {[%clk 0:00:08.4]} 52. Kg6 {[%clk 0:00:16.6]} 52...
Kc5 {[%clk 0:00:08.9]} 53. Bg8 {[%clk 0:00:16.9]} 53... Kd4 {[%clk 0:00:08.8]}
54. Kxh6 {[%clk 0:00:17.5]} 54... Bf4 {[%clk 0:00:09.3]} 55. Kg6 {[%clk
0:00:17.8]} 55... Ke5 {[%clk 0:00:09.1]} 56. Kh5 {[%clk 0:00:13.9]} 56... Be3
{[%clk 0:00:05]} 57. h4 {[%clk 0:00:13.8]} 57... gxh4 {[%clk 0:00:05.8]} 58.
Kxh4 {[%clk 0:00:14.3]} 58... Kf6 {[%clk 0:00:06.4]} 59. Kh5 {[%clk 0:00:14.9]}
59... Bg5 {[%clk 0:00:06.4]} 60. Bd5 {[%clk 0:00:14.8]} 60... Be3 {[%clk
0:00:06.5]} 61. Kh4 {[%clk 0:00:15.4]} 61... Bg5+ {[%clk 0:00:06.8]} 62. Kg3
{[%clk 0:00:15.7]} 62... Be3 {[%clk 0:00:07.7]} 63. Kf3 {[%clk 0:00:16.2]} 63...
Bc5 {[%clk 0:00:06.2]} 64. Ke4 {[%clk 0:00:16.8]} 64... Kg5 {[%clk 0:00:05.9]}
65. Be6 {[%clk 0:00:17.3]} 65... Kf6 {[%clk 0:00:06.2]} 66. Kd5 {[%clk
0:00:17.8]} 66... Bf2 {[%clk 0:00:05.8]} 67. Bc8 {[%clk 0:00:17.3]} 67... Ke7
{[%clk 0:00:04.9]} 68. c5 {[%clk 0:00:17.8]} 68... Kd8 {[%clk 0:00:05.1]} 69.
Bf5 {[%clk 0:00:18.4]} 69... Kc7 {[%clk 0:00:05.3]} 70. c6 {[%clk 0:00:18.4]}
70... Be3 {[%clk 0:00:05.4]} 71. Bd7 {[%clk 0:00:19]} 71... Bg5 {[%clk
0:00:05.4]} 72. Ke6 {[%clk 0:00:19.5]} 72... Bc1 {[%clk 0:00:06.3]} 73. Kf5
{[%clk 0:00:20.1]} 73... Kd6 {[%clk 0:00:06.7]} 74. g5 {[%clk 0:00:20.2]} 74...
Kc7 {[%clk 0:00:07.6]} 75. g6 {[%clk 0:00:20.6]} 75... Bb2 {[%clk 0:00:07.4]}
76. Ke6 {[%clk 0:00:21.3]} 76... Kd8 {[%clk 0:00:07.8]} 77. Kf7 {[%clk 0:00:22]}
77... Kc7 {[%clk 0:00:08.1]} 78. g7 {[%clk 0:00:22.7]} 78... Bxg7 {[%clk
0:00:08.4]} 79. Kxg7 {[%clk 0:00:23.3]} 79... Kd6 {[%clk 0:00:09.3]} 80. Kf7
{[%clk 0:00:23.9]} 80... Kc7 {[%clk 0:00:10.2]} 81. Ke6 {[%clk 0:00:24.5]} 81...
Kd8 {[%clk 0:00:10.3]} 82. Kd5 {[%clk 0:00:24.5]} 82... Kc7 {[%clk 0:00:10.2]}
83. Kc5 {[%clk 0:00:25.2]} 83... Kb8 {[%clk 0:00:10.6]} 84. Bg4 {[%clk
0:00:25.8]} 84... Kc7 {[%clk 0:00:11]} 85. Kb5 {[%clk 0:00:26.3]} 85... Kd8
{[%clk 0:00:11.9]} 86. Kb6 {[%clk 0:00:26.4]} 86... Ke7 {[%clk 0:00:11.6]} 87.
c7 {[%clk 0:00:27]} 1-0

[Event "*** Titled Tuesday Blitz"]
[Site "Chess.com"]
[Date "2021.04.06"]
[Round "3"]
[White "gxbg2000"]
[Black "ahmad_alkhatib11"]
[Result "1/2-1/2"]
[WhiteElo "2004"]
[BlackElo "2287"]
[TimeControl "180+1"]
[EndTime "10:30:22 PDT"]
[Termination "Game drawn by stalemate"]

1. e4 {[%clk 0:03:00.9]} 1... c5 {[%clk 0:02:59.4]} 2. f4 {[%clk 0:03:00.1]}
2... d5 {[%clk 0:02:56.6]} 3. exd5 {[%clk 0:02:59.1]} 3... Nf6 {[%clk
0:02:56.5]} 4. Nf3 {[%clk 0:02:59]} 4... Nxd5 {[%clk 0:02:55.2]} 5. d3 {[%clk
0:02:59.3]} 5... Nc6 {[%clk 0:02:54.4]} 6. Be2 {[%clk 0:02:59.3]} 6... g6 {[%clk
0:02:46.5]} 7. O-O {[%clk 0:02:59.2]} 7... Bg7 {[%clk 0:02:46.4]} 8. c3 {[%clk
0:02:59.5]} 8... O-O {[%clk 0:02:45.9]} 9. Na3 {[%clk 0:02:59.7]} 9... b6 {[%clk
0:02:36.5]} 10. Nc4 {[%clk 0:02:59.3]} 10... Qc7 {[%clk 0:02:28.5]} 11. Qc2
{[%clk 0:02:58.7]} 11... Nxf4 {[%clk 0:02:24.1]} 12. Bxf4 {[%clk 0:02:56.9]}
12... Qxf4 {[%clk 0:02:25]} 13. Nfe5 {[%clk 0:02:51.5]} 13... Bxe5 {[%clk
0:02:10]} 14. Rxf4 {[%clk 0:02:49.2]} 14... Bxf4 {[%clk 0:02:10.9]} 15. Bf3
{[%clk 0:02:47.8]} 15... Bb7 {[%clk 0:02:03.6]} 16. Rf1 {[%clk 0:02:43.2]} 16...
Bh6 {[%clk 0:01:52.2]} 17. Qe2 {[%clk 0:02:12.5]} 17... Rad8 {[%clk 0:01:45.6]}
18. Ne5 {[%clk 0:01:35.8]} 18... Nxe5 {[%clk 0:01:34.8]} 19. Qxe5 {[%clk
0:01:35.5]} 19... Bxf3 {[%clk 0:01:07.6]} 20. Rxf3 {[%clk 0:01:34.2]} 20... Rd7
{[%clk 0:01:05.6]} 21. g4 {[%clk 0:01:24.5]} 21... Rfd8 {[%clk 0:01:01.5]} 22.
g5 {[%clk 0:01:17.7]} 22... Bg7 {[%clk 0:00:59.6]} 23. Qf4 {[%clk 0:01:16.5]}
23... e6 {[%clk 0:00:32.7]} 24. Qe4 {[%clk 0:01:15.8]} 24... Rd5 {[%clk
0:00:27.7]} 25. h4 {[%clk 0:01:13.3]} 25... R8d7 {[%clk 0:00:27.1]} 26. Kg2
{[%clk 0:01:11.5]} 26... h6 {[%clk 0:00:27.1]} 27. gxh6 {[%clk 0:00:47.4]} 27...
Bxh6 {[%clk 0:00:28]} 28. c4 {[%clk 0:00:42.1]} 28... Rd4 {[%clk 0:00:24.1]} 29.
Qa8+ {[%clk 0:00:40.7]} 29... Kg7 {[%clk 0:00:21.7]} 30. Qb8 {[%clk 0:00:28.1]}
30... Rxh4 {[%clk 0:00:17.2]} 31. Qe5+ {[%clk 0:00:26.7]} 31... Kg8 {[%clk
0:00:17]} 32. Qb8+ {[%clk 0:00:23.2]} 32... Kh7 {[%clk 0:00:16]} 33. Qe8 {[%clk
0:00:23.1]} 33... Rc7 {[%clk 0:00:11.3]} 34. Rxf7+ {[%clk 0:00:21.8]} 34... Rxf7
{[%clk 0:00:12.2]} 35. Qxf7+ {[%clk 0:00:21.8]} 35... Bg7 {[%clk 0:00:12.7]} 36.
Qxe6 {[%clk 0:00:20.3]} 36... Rd4 {[%clk 0:00:12.4]} 37. Qe3 {[%clk 0:00:16.7]}
37... Rg4+ {[%clk 0:00:08.4]} 38. Kf3 {[%clk 0:00:15.7]} 38... Rd4 {[%clk
0:00:09.3]} 39. Ke2 {[%clk 0:00:14.7]} 39... Rh4 {[%clk 0:00:07.7]} 40. Qg3
{[%clk 0:00:10.3]} 40... Rh5 {[%clk 0:00:07]} 41. Qc7 {[%clk 0:00:08.1]} 41...
Re5+ {[%clk 0:00:06.9]} 42. Kd2 {[%clk 0:00:07.6]} 42... Rh5 {[%clk 0:00:04.8]}
43. Qxa7 {[%clk 0:00:07]} 43... Rh2+ {[%clk 0:00:04.9]} 44. Ke3 {[%clk
0:00:06.9]} 44... Rxb2 {[%clk 0:00:05.8]} 45. a4 {[%clk 0:00:05.9]} 45... Ra2
{[%clk 0:00:05]} 46. Qxb6 {[%clk 0:00:04.5]} 46... Rxa4 {[%clk 0:00:04.6]} 47.
Qxc5 {[%clk 0:00:05.1]} 47... Ra1 {[%clk 0:00:04.8]} 48. Ke4 {[%clk 0:00:05]}
48... Re1+ {[%clk 0:00:04.8]} 49. Kf3 {[%clk 0:00:03.7]} 49... Rf1+ {[%clk
0:00:04.8]} 50. Ke2 {[%clk 0:00:03.2]} 50... Rf5 {[%clk 0:00:05.7]} 51. Qd6
{[%clk 0:00:03]} 51... Re5+ {[%clk 0:00:05.5]} 52. Kd2 {[%clk 0:00:01.7]} 52...
Bh6+ {[%clk 0:00:04.5]} 53. Kc2 {[%clk 0:00:02.2]} 53... Bg7 {[%clk 0:00:05.4]}
54. Kb3 {[%clk 0:00:02.2]} 54... Re3 {[%clk 0:00:05]} 55. Kb4 {[%clk 0:00:02.7]}
55... Rf3 {[%clk 0:00:03.8]} 56. Kb5 {[%clk 0:00:03.6]} 56... Rf5+ {[%clk
0:00:03.5]} 57. c5 {[%clk 0:00:03.2]} 57... Bf8 {[%clk 0:00:03.3]} 58. Qh2+
{[%clk 0:00:03.6]} 58... Kg7 {[%clk 0:00:03.3]} 59. d4 {[%clk 0:00:04.3]} 59...
Rf3 {[%clk 0:00:01.8]} 60. Qc7+ {[%clk 0:00:04.3]} 60... Rf7 {[%clk 0:00:01.3]}
61. Qe5+ {[%clk 0:00:03.5]} 61... Rf6 {[%clk 0:00:02.2]} 62. c6 {[%clk
0:00:03.7]} 62... Kf7 {[%clk 0:00:02.6]} 63. d5 {[%clk 0:00:04]} 63... Rf5
{[%clk 0:00:02.6]} 64. Qc7+ {[%clk 0:00:04.1]} 64... Kf6 {[%clk 0:00:02.6]} 65.
Kc4 {[%clk 0:00:04.6]} 65... Bd6 {[%clk 0:00:03.5]} 66. Qd7 {[%clk 0:00:04.6]}
66... Rf4+ {[%clk 0:00:04.4]} 67. Kb5 {[%clk 0:00:04.1]} 67... Ke5 {[%clk
0:00:04]} 68. c7 {[%clk 0:00:03.8]} 68... Rf5 {[%clk 0:00:04.9]} 69. Kc6 {[%clk
0:00:02.5]} 69... Rf4 {[%clk 0:00:04.6]} 70. Qxd6+ {[%clk 0:00:02.7]} 70... Ke4
{[%clk 0:00:04.7]} 71. Qxf4+ {[%clk 0:00:03.1]} 71... Kxf4 {[%clk 0:00:04.8]}
72. c8=Q {[%clk 0:00:04]} 72... g5 {[%clk 0:00:05.7]} 73. Qe6 {[%clk 0:00:04.5]}
73... g4 {[%clk 0:00:06.6]} 74. d6 {[%clk 0:00:05.3]} 74... Kg3 {[%clk
0:00:07.5]} 75. d7 {[%clk 0:00:06.2]} 75... Kg2 {[%clk 0:00:08.3]} 76. d8=Q
{[%clk 0:00:06.3]} 76... g3 {[%clk 0:00:09.2]} 77. Qdg8 {[%clk 0:00:06.6]} 77...
Kg1 {[%clk 0:00:10.1]} 78. Qe3+ {[%clk 0:00:06.3]} 78... Kf1 {[%clk 0:00:09.4]}
79. Qgxg3 {[%clk 0:00:07.2]} 1/2-1/2